Workbook

Sheet звіт 0113104
K1: ЗАТВЕРДЖЕНО Наказ Міністерства фінансів України 26 серпня 2014 року N 836 (у редакції наказу Міністерства фінансів України від 15 листопада 2018 року N 908)
A3: Звіт
A4: про виконання паспорта бюджетної програми місцевого бюджету за 2019 рік
A5: 1. | B5: '0100000 | E5: Дунаєвецька міська рада
B6: (КТПКВК МБ) | E6: (найменування головного розпорядника)
A7: 2. | B7: 0110000 | E7: Дунаєвецька міська рада
B8: (КТПКВК МБ) | E8: (найменування відповідального виконавця)
A9: 3. | B9: 0113104 | C9: 3104 | E9: Забезпечення соціальними послугами за місцем проживання громадян, які не здатні до самообслуговування у зв`язку з похилим віком, хворобою, інвалідністю
B10: (КТПКВК МБ) | C10: (КФКВК) | E10: (найменування бюджетної програми)
A11: 4. | B11: Видатки (надані кредити) за бюджетною програмою:
J12: (грн)
B13: Затверджено у паспорті бюджетної програми | E13: Касові видатки (надані кредити) | H13: Відхилення
B14: загальний фонд | C14: спеціальний фонд | D14: усього | E14: загальний фонд | F14: спеціальний фонд | G14: усього | H14: загальний фонд | I14: спеціальний фонд | J14: усього
B15: 1 | C15: 2 | D15: 3 | E15: 4 | F15: 5 | G15: 6 | H15: 7 | I15: 8 | J15: 9
B16: 5905072 | C16: 50000 | D16: =B16+C16 -> 5955072 | E16: 5568122 | F16: 86694 | G16: =E16+F16 -> 5654816 | H16: =E16-B16 -> -336950 | I16: =F16-C16 -> 36694 | J16: =G16-D16 -> -300256
A19: 5. | B19: Напрями використання бюджетних коштів:
K20: (грн)
A21: N з/п | B21: Напрями використання бюджетних коштів | C21: Затверджено у паспорті бюджетної програми | F21: Касові видатки (надані кредити) | I21: Відхилення
C22: загальний фонд | D22: спеціальний фонд | E22: усього | F22: загальний фонд | G22: спеціальний фонд | H22: усього | I22: загальний фонд | J22: спеціальний фонд | K22: усього
A23: 1 | B23: 2 | C23: 3 | D23: 4 | E23: 5 | F23: 6 | G23: 7 | H23: 8 | I23: 9 | J23: 10 | K23: 11
B24: Створення належних умов для діяльності працівників, які надають соціальних послуг громадянам за місцем проживання , які не здатні до самообслуговування у зв’язку з похилим віком, хворобою, інвалідністюта та функціонування територіального центру | C24: =B16 -> 5905072 | D24: 50000 | E24: 5955072 | F24: 5568122 | G24: 86694 | H24: 5654816 | I24: -336950 | J24: 36694 | K24: -300256
B25: Усього | C25: =SUM(C24:C24) -> 5905072 | D25: 50000 | E25: 5955072 | F25: 5568122 | G25: 86694 | H25: 5654816 | I25: -336950 | J25: 36694 | K25: -300256
A26: Відхилення виникло завдяки економії бюджетних коштів , зокрема по енергоносіях та понадпланових надходжень плати за послуги
A28: 6. | B28: Видатки (надані кредити) на реалізацію місцевих/регіональних програм, які виконуються в межах бюджетної програми:
B30: Найменування місцевої / регіональної програми | C30: Затверджено у паспорті бюджетної програми | F30: Касові видатки (надані кредити) | I30: Відхилення
C31: загальний фонд | D31: спеціальний фонд | E31: усього | F31: загальний фонд | G31: спеціальний фонд | H31: усього | I31: загальний фонд | J31: спеціальний фонд | K31: усього
B32: 1 | C32: 2 | D32: 3 | E32: 4 | F32: 5 | G32: 6 | H32: 7 | I32: 8 | J32: 9 | K32: 10
B35: Усього
B36: Пояснення щодо причин відхилення між касовими видатками (наданими кредитами) та затвердженими у паспорті бюджетної програми
A39: 7. | B39: Результативні показники бюджетної програми та аналіз їх виконання:
A42: N з/п | B42: Показники | C42: Одиниця виміру | D42: Джерело інформації | E42: Затверджено у паспорті бюджетної програми | H42: Фактичні результативні показники, досягнуті за рахунок касових видатків (наданих кредитів) | K42: Відхилення
E44: загальний фонд | F44: спеціальний фонд | G44: усього | H44: загальний фонд | I44: спеціальний фонд | J44: усього | K44: загальний фонд | L44: спеціальний фонд | M44: усього
A45: 1 | B45: 2 | C45: 3 | D45: 4 | E45: 5 | F45: 6 | G45: 7 | H45: 8 | I45: 9 | J45: 10 | K45: 11 | L45: 12 | M45: 13
A46: 1 | B46: затрат
B47: кількість установ | C47: од. | D47: звіт 12-соц | E47: 1 | G47: =E47+F47 -> 1 | H47: 1 | J47: =SUM(H47:I47) -> 1 | K47: =E47-H47 -> 0 | L47: =I47-F47 -> 0 | M47: =G47-J47 -> 0
B48: кількість відділень | C48: од. | D48: звіт 12-соц | E48: 2 | G48: =E48+F48 -> 2 | H48: 2 | J48: =SUM(H48:I48) -> 2 | K48: =E48-H48 -> 0 | L48: =I48-F48 -> 0 | M48: =G48-J48 -> 0
B49: кількість штатних одиниць персоналу | C49: од | D49: штатний розпис | E49: 84 | G49: 84 | H49: 84 | J49: =SUM(H49:I49) -> 84 | K49: =E49-H49 -> 0 | L49: =I49-F49 -> 0 | M49: =G49-J49 -> 0
B50: у т.ч. професіоналів, фахівців та робітників, які надають соціальні послуги | C50: од | D50: штатний розпис | E50: 72.5 | G50: =E50 -> 72.5 | H50: 72.5 | J50: =SUM(H50:I50) -> 72.5 | K50: =E50-H50 -> 0 | L50: =I50-F50 -> 0 | M50: =G50-J50 -> 0
A51: Відхиленнь щодо штатних одиниць не має
A52: 2 | B52: продукту
B53: чисельність осіб, які потребують соціального обслуговування | C53: од. | D53: звіт 12-соц | E53: 2300 | G53: =SUM(E53:F53) -> 2300 | H53: 2269 | J53: =SUM(H53:I53) -> 2269 | K53: =E53-H53 -> 31 | L53: 0 | M53: =G53-H53 -> 31
B54: у т.ч. з V групою рухової активності | C54: од. | D54: звіт 12-соц | E54: 8 | G54: =SUM(E54:F54) -> 8 | H54: 8 | J54: =SUM(H54:I54) -> 8 | K54: 0 | L54: 0 | M54: =G54-H54 -> 0
B55: чисельність осіб, забезпечених соціальним обслуговуванням (наданням соціальних послуг)які потребують соціального обслуговування | C55: од. | D55: звіт 12-соц | E55: 2300 | G55: =SUM(E55:F55) -> 2300 | H55: 2269 | J55: =SUM(H55:I55) -> 2269 | K55: 31 | L55: 0 | M55: =G55-H55 -> 31
A56: Відхилення виникло за рахунок зменшення чисельності осіб, які потребують соціального обслуговування
A57: 3 | B57: ефективності
B58: чисельність обслуговуваних на 1 штатну одиницю професіонала, фахівця та робітника, які надають соціальні послуги | C58: осіб | D58: розрахунково, 12-соц | E58: =E55/E50 -> 31.72413793 | G58: =G55/G50 -> 31.72413793 | H58: =H55/H50 -> 31.29655172 | J58: =J55/J50 -> 31.29655172 | K58: =E58-H58 -> 0.4275862069 | L58: =F58-I58 -> 0 | M58: =G58-H58 -> 0.4275862069
B59: середні затрати на соціальне обслуговування (надання соціальних послуг) 1 особи територіальним центром, за винятком стаціонарниих відділень) | C59: грн/рік | D59: розрахунково, 12-соц | E59: =B16/E53 -> 2567.422609 | G59: =SUM(E59:F59) -> 2567.422609 | H59: =E16/H53 -> 2453.998237 | J59: =SUM(H59:I59) -> 2453.998237 | K59: =E59-H59 -> 113.4243716 | L59: =F59-I59 -> 0 | M59: =G59-H59 -> 113.4243716
A60: Відхилення виникло за рахунок зменшення чисельності осіб, які потребують соціального обслуговування та економії бюджетних коштів
A61: 4 | B61: якості
B62: відсоток осіб, охоплених соціальним обслуговуванням, до загальної чисельності осіб, які потребують соціальних послуг | C62: % | D62: розрахунок | E62: 100 | G62: 100 | H62: 100 | J62: 100 | K62: 0 | M62: 0
A63: Територіальним центром 100% охоплено соціальним обслуговуванням осіб, які потребували соціальних послуг.
A64: Аналіз стану виконання результативних показників
A65: Працівниками КУ ДМР "Територіальний центр соціального обслуговування" протягом 2019року надавалися соціальні послуги 2269 громадянам за місцем проживання, які не здатні до самообслуговування у зв`язку з похилим віком, хворобою, інвалідністю, а також громадянам, які перебувають у складних життєвих обставинах, з них 8 осіб з V групою рухової активності. Їх обслуговувало 72,5 штатних одиниці професіоналів, фахівців та робітників. На 1 штатну одиницю професіонала, фахівця та робітника, які надають соціальні послуги припадає 31 обслуговуваних. Середні затрати на соціальне обслуговування (надання соціальних послуг) 1 особи склали 2 454 грн. що в порівнянні до затверджених показників менші на 5% за рахунок економії коштів, зокрема по енергоносіях, напротязі року. Територіальним центром 100% охоплено соціальним обслуговуванням осіб, які потребували соціальних послуг.
A68: Міський голова | J68: В.В.Заяць
H69: (підпис) | J69: (ініціали та прізвище)
A71: Головний бухгалтер | J71: О.П.Рищенко
H72: (підпис) | J72: (ініціали та прізвище)
